fUST/lending_fUST_20250723
["ID","MTS","AMOUNT","RATE_DAILY","PERIOD"]
[374137816,1753227052437,-652.44,0.00021452,2]
[374137817,1753227052446,-607.41,0.00021452,2]
[374137818,1753227052455,-2022.49,0.00021455,2]
[374137819,1753227052465,-946.41,0.00021455,2]
[374137820,1753227052475,-979.44,0.00021455,2]
[374137821,1753227052486,-460.0,0.00021455,2]
[374137822,1753227052495,-887.93,0.00021455,2]
[374137823,1753227052504,-866.92,0.00021455,2]
[374137824,1753227052514,-567.78,0.00021457,2]
[374137825,1753227052523,-304.16,0.00021457,2]
[374137826,1753227052533,-704.66,0.00021457,2]
[374137827,1753227052542,-1610.18,0.00021457,2]
[374137828,1753227052551,-953.79,0.00021457,2]
[374137829,1753227052561,-500.0,0.00021473,2]
[374137830,1753227052570,-165.42282706,0.00021473,2]
[374137831,1753227052579,-500.0,0.00021473,2]
[374137832,1753227052588,-500.16605622,0.00021473,2]
[374137833,1753227052597,-160.25012645,0.00021473,2]
[374137834,1753227052607,-2569.962065,0.00021486,5]
[374137835,1753227052616,-1000.0,0.00021521,2]
[374137836,1753227052711,-1860.33,0.00021726,2]
[374137837,1753227052721,-460.0,0.00021726,2]
[374137838,1753227052732,-1494.32,0.00021726,2]
[374137839,1753227052741,-1152.83,0.00021726,2]
[374137840,1753227052751,-460.0,0.00021726,2]
[374137841,1753227052760,-556.67,0.00021726,2]
[374137842,1753227052769,-460.0,0.00021726,2]
[374137843,1753227052779,-652.44,0.00021726,2]
[374137844,1753227052788,-2022.49,0.00021729,2]
[374137845,1753227052798,-946.41,0.00021729,2]
[374137846,1753227052812,-979.44,0.00021729,2]
[374137847,1753227052821,-460.0,0.00021729,2]
[374137848,1753227052831,-887.93,0.00021729,2]
[374137849,1753227052840,-866.92,0.00021729,2]
[374137850,1753227052851,-567.78,0.00021731,2]
[374137851,1753227052860,-704.66,0.00021731,2]
[374137852,1753227052869,-1610.18,0.00021731,2]
[374137853,1753227052880,-953.79,0.00021731,2]
[374137854,1753227052891,-2569.962065,0.00021762,5]
[374137855,1753227052902,-683.01807293,0.00021867,4]
[374137856,1753227052912,-151.0,0.00021918,2]
[374137857,1753227052921,-151.0,0.00021918,2]
[374137858,1753227052930,-200.0,0.00021918,2]
[374137859,1753227052940,-151.379814,0.00021968,7]
[374137860,1753227052950,-151.0,0.00021968,7]
[374137861,1753227052960,-151.0,0.00021968,7]
[374137862,1753227052970,-151.0,0.00021968,7]
[374137863,1753227052981,-151.0,0.00021968,7]
[374137864,1753227052991,-151.0,0.0002199,7]
[374137865,1753227052999,-151.0,0.0002199,7]
[374137866,1753227053009,-151.0,0.0002199,7]
[374137867,1753227053019,-151.0,0.0002199,7]
[374137868,1753227053030,-151.0,0.0002199,7]
[374137869,1753227053039,-151.0,0.0002199,7]
[374137870,1753227053050,-151.0,0.0002199,7]
[374137871,1753227053059,-151.0,0.0002199,7]
[374137872,1753227053069,-14832.41,0.00022,2]
[374137873,1753227053078,-1860.33,0.00022,2]
[374137874,1753227053087,-460.0,0.00022,2]
[374137875,1753227053096,-1494.32,0.00022,2]
[374137876,1753227053106,-1152.83,0.00022,2]
[374137877,1753227053115,-460.0,0.00022,2]
[374137878,1753227053124,-556.67,0.00022,2]
[374137879,1753227053133,-482.7,0.00022,2]
[374137880,1753227053143,-652.44,0.00022,2]
[374137881,1753227053152,-2022.49,0.00022003,2]
[374137882,1753227053161,-946.41,0.00022003,2]
[374137883,1753227053171,-979.44,0.00022003,2]
[374137884,1753227053180,-460.0,0.00022003,2]
[374137885,1753227053189,-887.93,0.00022003,2]
[374137886,1753227053199,-866.92,0.00022003,2]
[374137887,1753227053208,-567.78,0.00022005,2]
[374137888,1753227053217,-704.66,0.00022005,2]
[374137889,1753227053226,-1610.18,0.00022005,2]
[374137890,1753227053237,-953.79,0.00022005,2]
[374137891,1753227053247,-2569.962065,0.00022038,6]
[374137892,1753227053256,-1228.05112829,0.00022068,2]
[374137893,1753227053265,-178.749928,0.00022071,2]
[374137894,1753227053275,-165.53,0.000221,7]
[374137895,1753227053286,-294.12,0.000221,7]
[374137896,1753227053295,-1007.80706655,0.000221,2]
[374137897,1753227053304,-152.68908941,0.00022259,2]
[374137898,1753227053314,-1860.33,0.00022274,2]
[374137899,1753227053323,-460.0,0.00022274,2]
[374137900,1753227053332,-1494.32,0.00022274,2]
[374137901,1753227053342,-1152.83,0.00022274,2]
[374137902,1753227053351,-460.0,0.00022274,2]
[374137903,1753227053360,-556.67,0.00022274,2]
[374137904,1753227053370,-652.44,0.00022274,2]
[374137905,1753227053379,-2022.49,0.00022277,2]
[374137906,1753227053389,-946.41,0.00022277,2]
[374137907,1753227053399,-979.44,0.00022277,2]
[374137908,1753227053410,-460.0,0.00022277,2]
[374137909,1753227053420,-887.93,0.00022277,2]
[374137910,1753227053429,-866.92,0.00022277,2]
[374137911,1753227053438,-567.78,0.00022279,2]
[374137912,1753227053448,-704.66,0.00022279,2]
[374137913,1753227053457,-1610.18,0.00022279,2]
[374137914,1753227053467,-953.79,0.00022279,2]
[374137915,1753227053476,-2569.962065,0.00022314,7]
[374137916,1753227053487,-151.0,0.000224,7]
[374137917,1753227053496,-732.998,0.00022402,5]
[374137918,1753227053505,-151.0,0.00022465,7]
[374137919,1753227053514,-1559.9,0.00022465,2]
[374137920,1753227053523,-1860.33,0.00022548,2]
[374137921,1753227053533,-460.0,0.00022548,2]
[374137922,1753227053542,-1494.32,0.00022548,2]
[374137923,1753227053551,-151.0,0.00022548,7]
[374137924,1753227053560,-151.0,0.00022548,7]
[374137925,1753227053570,-1152.83,0.00022548,2]
[374137926,1753227053579,-460.0,0.00022548,2]
[374137927,1753227053588,-151.0,0.00022548,7]
[374137928,1753227053597,-556.67,0.00022548,2]
[374137929,1753227053606,-652.44,0.00022548,2]
[374137930,1753227053615,-2022.49,0.00022551,2]
[374137931,1753227053625,-946.41,0.00022551,2]
[374137932,1753227053634,-979.44,0.00022551,2]
[374137933,1753227053643,-460.0,0.00022551,2]
[374137934,1753227053653,-887.93,0.00022551,2]
[374137935,1753227053662,-866.92,0.00022551,2]
[374137936,1753227053672,-567.78,0.00022553,2]
[374137937,1753227053681,-586.52,0.00022553,2]
[374137938,1753227053691,-704.66,0.00022553,2]
[374137939,1753227053700,-1610.18,0.00022553,2]
[374137940,1753227053710,-953.79,0.00022553,2]
[374137941,1753227053719,-523.57,0.00022583,2]
[374137942,1753227053729,-1222.44,0.00022586,2]
[374137943,1753227053739,-2569.962065,0.0002259,7]
[374137944,1753227053748,-2241.4,0.000226,7]
[374137945,1753227053758,-547.44878007,0.00022603,2]
[374137946,1753227053767,-523.57,0.00022683,5]
[374137947,1753227053776,-523.57,0.00022783,3]
[374137948,1753227053786,-1860.33,0.00022822,2]
[374137949,1753227053795,-151.0,0.00022822,7]
[374137950,1753227053806,-253.98,0.00022822,2]
[374137951,1753227053817,-151.0,0.00022822,7]
[374137952,1753227053827,-1494.32,0.00022822,2]
[374137953,1753227053836,-1152.83,0.00022822,2]
[374137954,1753227053846,-481.46,0.00022822,2]
[374137955,1753227053856,-556.67,0.00022822,2]
[374137956,1753227053864,-652.44,0.00022822,2]
[374137957,1753227053874,-230.799096,0.00022822,7]
[374137958,1753227053883,-230.799096,0.00022822,7]
[374137959,1753227053893,-2022.49,0.00022825,2]
[374137960,1753227053902,-946.41,0.00022825,2]
[374137961,1753227053912,-979.44,0.00022825,2]
[374137962,1753227053921,-418.85,0.00022825,2]
[374137963,1753227053930,-887.93,0.00022825,2]
[374137964,1753227053939,-866.92,0.00022825,2]
[374137965,1753227053948,-592.46,0.00022827,2]
[374137966,1753227053957,-567.78,0.00022827,2]
[374137967,1753227053966,-586.52,0.00022827,2]
[374137968,1753227053976,-704.66,0.00022827,2]
[374137969,1753227053986,-1610.18,0.00022827,2]
[374137970,1753227053995,-953.79,0.00022827,2]
[374137971,1753227054004,-2569.962065,0.00022866,8]
[374137972,1753227054013,-523.57,0.00022883,4]
[374137973,1753227054022,-523.57,0.00022983,4]
[374137974,1753227054031,-160.0,0.00023,2]
[374137975,1753227054040,-523.57,0.00023083,7]
[374137976,1753227054049,-3948.89799874,0.00023092,2]
[374137977,1753227054058,-1860.5665373,0.00023096,2]
[374137978,1753227054067,-1494.46,0.00023096,2]
[374137979,1753227054077,-1152.97,0.00023096,2]
[374137980,1753227054086,-556.77,0.00023096,2]
[374137981,1753227054095,-652.49,0.00023096,2]
[374137982,1753227054104,-2022.59866279,0.00023099,2]
[374137983,1753227054114,-979.62,0.00023099,2]
[374137984,1753227054123,-888.07776115,0.00023099,2]
[374137985,1753227054132,-867.13336774,0.00023099,2]
[374137986,1753227054142,-592.68,0.00023101,2]
[374137987,1753227054151,-586.57,0.00023101,2]
[374137988,1753227054160,-704.69,0.00023101,2]
[374137989,1753227054170,-1610.37,0.00023101,2]
[374137990,1753227054179,-953.8398689,0.00023101,2]
[374137991,1753227054188,-2569.962065,0.00023141,8]
[374137992,1753227054196,-178.749928,0.00023152,2]
[374137993,1753227054206,-523.57,0.00023183,7]
[374137994,1753227054215,-214.6393183,0.000232,7]
[374137995,1753227054225,-523.57,0.00023283,3]
[374137996,1753227054236,-14832.41,0.000233,2]
[374137997,1753227054245,-151.0,0.000233,7]
[374137998,1753227054254,-151.0,0.000233,7]
[374137999,1753227054263,-151.0,0.000233,7]
[374138000,1753227054272,-151.0,0.000233,7]
[374138001,1753227054281,-220.261111,0.000233,7]
[374138002,1753227054290,-523.65,0.00023383,6]
[374138003,1753227054299,-2157.0,0.00023392,2]
[374138004,1753227054308,-968.0,0.00023392,2]
[374138005,1753227054318,-407.0,0.00023392,2]
[374138006,1753227054327,-2569.962065,0.00023417,9]
[374138007,1753227054336,-152.68908941,0.0002365,2]
[374138008,1753227054346,-151.0,0.0002369,2]
[374138009,1753227054355,-151.0,0.0002369,2]
[374138010,1753227054363,-151.0,0.0002369,2]
[374138011,1753227054373,-151.0,0.0002369,2]
[374138012,1753227054382,-215.0738,0.0002369,2]
[374138013,1753227054391,-151.0,0.0002369,2]
[374138014,1753227054400,-151.0,0.0002369,2]
[374138015,1753227054409,-151.0,0.0002369,2]
[374138016,1753227054418,-151.0,0.0002369,2]
[374138017,1753227054428,-151.0,0.0002369,2]
[374138018,1753227054437,-151.0,0.0002369,2]
[374138019,1753227054447,-151.0,0.0002369,2]
[374138020,1753227054456,-151.0,0.0002369,2]
[374138021,1753227054465,-151.0,0.0002369,2]
[374138022,1753227054476,-151.0,0.0002369,2]
[374138023,1753227054488,-151.0,0.0002369,2]
[374138024,1753227054498,-151.0,0.0002369,2]
[374138025,1753227054507,-151.0,0.0002369,2]
[374138026,1753227054516,-151.0,0.0002369,2]
[374138027,1753227054526,-151.0,0.0002369,2]
[374138028,1753227054535,-151.0,0.0002369,2]
[374138029,1753227054544,-2569.962065,0.00023693,9]
[374138030,1753227054554,-179.280792,0.00023744,2]
[374138031,1753227054563,-314.142,0.00023772,2]
[374138032,1753227054572,-294.12,0.000238,7]
[374138033,1753227054582,-151.0,0.000238,10]
[374138034,1753227054591,-1105.88317557,0.000239,2]
[374138035,1753227054601,-2569.962065,0.00023969,10]
[374138036,1753227054610,-500.0,0.0002405,2]
[374138037,1753227054619,-500.0,0.0002419,2]
[374138038,1753227054629,-500.0,0.00024232,2]
[374138039,1753227054723,-178.749928,0.00024233,2]
[374138040,1753227054734,-2569.962065,0.00024245,10]
[374138041,1753227054744,-500.0,0.00024269,2]
[374138042,1753227054753,-151.0,0.000243,10]
[374138043,1753227054763,-859.2202502,0.00024377,2]
[374138044,1753227054773,-429.6101251,0.00024377,2]
[374138045,1753227054783,-429.6101251,0.00024377,2]
[374138046,1753227054792,-429.6101251,0.00024377,2]
[374138047,1753227054803,-429.6101251,0.00024377,2]
[374138048,1753227054816,-429.6101251,0.00024377,2]
[374138049,1753227054826,-429.6101251,0.00024377,2]
[374138050,1753227054835,-429.6101251,0.00024377,2]
[374138051,1753227054845,-429.6101251,0.00024377,2]
[374138052,1753227054854,-429.6101251,0.00024377,2]
[374138053,1753227054864,-429.6101251,0.00024377,2]
[374138054,1753227054873,-429.6101251,0.00024377,2]
[374138055,1753227054883,-429.6101251,0.00024377,2]
[374138056,1753227054893,-429.6101251,0.00024377,2]
[374138057,1753227054903,-429.6101251,0.00024377,2]
[374138058,1753227054912,-429.6101251,0.00024377,2]
[374138059,1753227054921,-429.6101251,0.00024377,2]
[374138060,1753227054930,-429.6101251,0.00024377,2]
[374138061,1753227054940,-429.6101251,0.00024377,2]
[374138062,1753227054949,-429.6101251,0.00024377,2]
[374138063,1753227054957,-429.6101251,0.00024377,2]
[374138064,1753227054967,-429.6101251,0.00024377,2]
[374138065,1753227054976,-429.6101251,0.00024377,2]
[374138066,1753227054987,-1833.65,0.00024469,2]
[374138067,1753227054997,-2569.962065,0.00024521,11]
[374138068,1753227055007,-174.97645,0.000246,8]
[374138069,1753227055016,-500.0,0.00024658,2]
[374138070,1753227055026,-178.749928,0.00024693,11]
[374138071,1753227055035,-642.0,0.000247,2]
[374138072,1753227055045,-178.749928,0.0002472,11]
[374138073,1753227055054,-178.749928,0.00024746,11]
[374138074,1753227055064,-178.749928,0.00024773,11]
[374138075,1753227055074,-2569.962065,0.00024797,11]
[374138076,1753227055083,-500.0,0.00024798,2]
[374138077,1753227055092,-170.6692493,0.000248,2]
[374138078,1753227055101,-178.749928,0.000248,11]
[374138079,1753227055110,-662.01944712,0.000248,2]
[374138080,1753227055120,-249.02404854,0.000248,2]
[374138081,1753227055129,-153.0,0.00024817,30]
[374138082,1753227055139,-153.0,0.00024817,30]
[374138083,1753227055149,-153.0,0.00024817,30]
[374138084,1753227055158,-153.0,0.00024817,30]
[374138085,1753227055167,-153.0,0.00024817,30]
[374138086,1753227055176,-153.0,0.00024817,30]
[374138087,1753227055185,-153.0,0.00024817,30]
[374138088,1753227055194,-153.0,0.00024817,30]
[374138089,1753227055204,-153.0,0.00024817,30]
[374138090,1753227055214,-153.0,0.00024817,30]
[374138091,1753227055224,-153.0,0.00024817,30]
[374138092,1753227055234,-153.0,0.00024817,30]
[374138093,1753227055244,-153.0,0.00024817,30]
[374138094,1753227055253,-153.0,0.00024817,30]
[374138095,1753227055262,-153.0,0.00024817,30]
[374138096,1753227055271,-153.0,0.00024817,30]
[374138097,1753227055280,-153.0,0.00024821,30]
[374138098,1753227055290,-153.0,0.00024821,30]
[374138099,1753227055299,-153.0,0.00024821,30]
[374138100,1753227055309,-153.0,0.00024821,30]
[374138101,1753227055318,-153.0,0.00024821,30]
[374138102,1753227055329,-153.0,0.00024821,30]
[374138103,1753227055338,-153.0,0.00024821,30]
[374138104,1753227055347,-153.0,0.00024821,30]
[374138105,1753227055357,-153.0,0.00024821,30]
[374138106,1753227055366,-153.0,0.00024821,30]
[374138107,1753227055375,-153.0,0.00024821,30]
[374138108,1753227055384,-153.0,0.00024821,30]
[374138109,1753227055393,-153.0,0.00024821,30]
[374138110,1753227055403,-249.02404853,0.00024827,2]
[374138111,1753227055412,-499.3,0.00024853,2]
[374138112,1753227055421,-249.02404853,0.00024854,2]
[374138113,1753227055431,-500.0,0.00024868,2]
[374138114,1753227055440,-249.02404853,0.0002488,2]
[374138115,1753227055449,-2241.4,0.000249,7]
[374138116,1753227055458,-935.14,0.000249,2]
[374138117,1753227055468,-151.0,0.000249,7]
[374138118,1753227055477,-151.0,0.000249,7]
[374138119,1753227055488,-151.0,0.000249,7]
[374138120,1753227055498,-151.0,0.000249,7]
[374138121,1753227055507,-151.0,0.000249,7]
[374138122,1753227055517,-151.0,0.000249,7]
[374138123,1753227055526,-151.0,0.000249,7]
[374138124,1753227055535,-151.0,0.000249,7]
[374138125,1753227055545,-151.0,0.000249,7]
[374138126,1753227055555,-151.0,0.000249,7]
[374138127,1753227055564,-151.0,0.000249,7]
[374138128,1753227055574,-14832.41,0.000249,2]
[374138129,1753227055583,-151.0,0.000249,7]
[374138130,1753227055593,-151.0,0.000249,7]
[374138131,1753227055603,-178.749928,0.000249,3]
[374138132,1753227055612,-293.59111184,0.000249,7]
[374138133,1753227055621,-151.0,0.000249,7]
[374138134,1753227055630,-179.55611,0.000249,7]
[374138135,1753227055640,-151.0,0.000249,7]
[374138136,1753227055650,-151.0,0.000249,7]
[374138137,1753227055659,-151.0,0.000249,7]
[374138138,1753227055669,-151.0,0.000249,7]
[374138139,1753227055678,-205.482248,0.000249,7]
[374138140,1753227055688,-151.0,0.000249,7]
[374138141,1753227055698,-151.0,0.000249,7]
[374138142,1753227055708,-151.0,0.000249,7]
[374138143,1753227055717,-214.6393183,0.000249,30]
[374138144,1753227055726,-163.537949,0.000249,7]
[374138145,1753227055736,-327777.999635,0.000249,2]
[374138146,1753227055745,-151.0,0.000249,7]
[374138147,1753227055754,-151.0,0.000249,7]
[374138148,1753227055764,-151.0,0.000249,7]
[374138149,1753227055773,-151.0,0.000249,7]
[374138150,1753227055783,-230.799096,0.000249,7]
[374138151,1753227055792,-230.799096,0.000249,7]
[374138152,1753227055803,-230.799096,0.000249,7]
[374138153,1753227055816,-230.799096,0.000249,7]
[374138154,1753227055825,-249.02404853,0.00024907,2]
[374138155,1753227055835,-500.0,0.00024932,2]
[374138156,1753227055846,-249.02404853,0.00024934,2]
[374138157,1753227055855,-4552.5956502,0.00024941,7]
[374138158,1753227055865,-249.02404853,0.00024961,2]
[374138159,1753227055874,-1990.941146,0.0002498,5]
[374138160,1753227055885,-249.02404853,0.00024987,2]
[374138161,1753227055894,-1000.0,0.00025,5]
[374138162,1753227055903,-4440.18040917,0.00025,2]
[374138163,1753227055912,-1000.0,0.00025,30]
[374138164,1753227055921,-526.07605158,0.00025,30]
[374138165,1753227055931,-249.02404853,0.00025014,2]
[374138166,1753227055939,-1000.0,0.0002502,5]
[374138167,1753227055949,-1000.0,0.0002504,5]
[374138168,1753227055959,-152.68908941,0.00025041,2]
[374138169,1753227055969,-3948.89799874,0.00025041,2]
[374138170,1753227055980,-14154.5264796,0.00025041,2]
[374138171,1753227055990,-249.02404853,0.00025041,2]
[374138172,1753227055999,-223.0315306,0.00025059,2]
[374138173,1753227056010,-1000.0,0.0002506,5]
[374138174,1753227056019,-2569.962065,0.00025072,12]
[374138175,1753227056028,-1000.0,0.0002508,5]
[374138176,1753227056038,-1129.48093,0.0002508,5]
[374138177,1753227056047,-966.45,0.0002509,2]
[374138178,1753227056058,-1000.0,0.000251,5]
[374138179,1753227056067,-1000.0,0.000251,5]
[374138180,1753227056076,-1016.0,0.000251,2]
[374138181,1753227056085,-151.0,0.00025123,7]
[374138182,1753227056095,-151.0,0.00025123,7]
[374138183,1753227056104,-151.0,0.00025123,7]
[374138184,1753227056114,-151.0,0.00025123,7]
[374138185,1753227056123,-293.514845,0.00025123,7]
[374138186,1753227056133,-151.0,0.00025123,7]
[374138187,1753227056142,-151.0,0.00025123,7]
[374138188,1753227056155,-151.0,0.00025123,7]
[374138189,1753227056176,-185.982062,0.00025123,7]
[374138190,1753227056186,-151.0,0.00025123,7]
[374138191,1753227056196,-151.0,0.00025123,7]
[374138192,1753227056205,-151.0,0.00025123,7]
[374138193,1753227056215,-299.06,0.00025123,7]
[374138194,1753227056225,-151.0,0.00025123,7]
[374138195,1753227056235,-151.0,0.00025123,7]
[374138196,1753227056244,-151.0,0.00025123,7]
[374138197,1753227056254,-151.0,0.00025123,7]
[374138198,1753227056263,-151.0,0.00025123,7]
[374138199,1753227056272,-203.896824,0.00025123,7]
[374138200,1753227056281,-151.0,0.00025123,7]
[374138201,1753227056291,-151.0,0.00025123,7]
[374138202,1753227056300,-151.0,0.00025123,7]
[374138203,1753227056309,-280.304466,0.00025123,7]
[374138204,1753227056318,-151.0,0.00025123,7]
[374138205,1753227056327,-151.0,0.00025123,7]
[374138206,1753227056337,-151.0,0.00025123,7]
[374138207,1753227056346,-151.0,0.00025123,7]
[374138208,1753227056355,-151.0,0.00025123,7]
[374138209,1753227056364,-151.0,0.00025123,7]
[374138210,1753227056373,-151.0,0.00025123,7]
[374138211,1753227056382,-294.131448,0.00025123,7]
[374138212,1753227056391,-151.0,0.00025123,7]
[374138213,1753227056400,-175.470778,0.00025123,7]
[374138214,1753227056409,-151.0,0.00025123,7]
[374138215,1753227056419,-151.0,0.00025123,7]
[374138216,1753227056429,-167.50047,0.00025123,7]
[374138217,1753227056439,-160.556432,0.00025123,7]
[374138218,1753227056448,-151.0,0.00025123,7]
[374138219,1753227056458,-178.749928,0.00025124,3]
[374138220,1753227056468,-500.0,0.00025124,2]
[374138221,1753227056480,-2200.0,0.00025124,2]
[374138222,1753227056502,-151.0,0.00025132,7]
[374138223,1753227056519,-151.0,0.00025132,7]
[374138224,1753227056528,-154.168874,0.00025132,7]
[374138225,1753227056614,-151.0,0.00025132,7]
[374138226,1753227056624,-151.0,0.00025132,7]
[374138227,1753227056634,-151.0,0.00025132,7]
[374138228,1753227056643,-151.0,0.00025132,7]
[374138229,1753227056653,-151.0,0.00025132,7]
[374138230,1753227056662,-151.0,0.00025132,7]
[374138231,1753227056671,-151.0,0.00025132,7]
[374138232,1753227056681,-151.0,0.00025132,7]
[374138233,1753227056691,-151.0,0.00025132,7]
[374138234,1753227056700,-151.0,0.00025132,7]
[374138235,1753227056710,-151.0,0.00025132,7]
[374138236,1753227056720,-151.0,0.00025132,7]
[374138237,1753227056730,-151.0,0.00025132,7]
[374138238,1753227056740,-151.0,0.00025132,7]
[374138239,1753227056750,-151.0,0.00025132,7]
[374138240,1753227056759,-176.26959,0.00025132,7]
[374138241,1753227056768,-151.0,0.00025132,7]
[374138242,1753227056778,-187.852308,0.00025132,7]
[374138243,1753227056787,-230.799096,0.00025132,7]
[374138244,1753227056797,-230.799096,0.00025132,7]
[374138245,1753227056807,-230.799096,0.00025132,7]
[374138246,1753227056818,-230.799096,0.00025132,7]
[374138247,1753227056827,-230.799096,0.00025132,7]
[374138248,1753227056837,-230.799096,0.00025132,7]
[374138249,1753227056847,-230.799096,0.00025132,7]
[374138250,1753227056856,-230.79910307,0.00025132,7]
[374138251,1753227056866,-151.0,0.00025134,7]
[374138252,1753227056875,-289.70608,0.00025134,7]
[374138253,1753227056886,-151.0,0.00025134,7]
[374138254,1753227056895,-151.0,0.00025134,7]
[374138255,1753227056904,-151.0,0.00025134,7]
[374138256,1753227056914,-151.0,0.00025134,7]
[374138257,1753227056923,-151.0,0.00025134,7]
[374138258,1753227056932,-151.0,0.00025134,7]
[374138259,1753227056942,-151.0,0.00025134,7]
[374138260,1753227056951,-151.0,0.00025134,7]
[374138261,1753227056960,-187.899252,0.00025134,7]
[374138262,1753227056970,-151.000001,0.00025134,7]
[374138263,1753227056979,-1752.0,0.00025134,3]
[374138264,1753227056991,-324.0,0.00025134,3]
[374138265,1753227057001,-324.0,0.00025134,3]
[374138266,1753227057010,-324.0,0.00025134,3]
[374138267,1753227057019,-151.0,0.00025134,7]
[374138268,1753227057028,-151.0,0.00025134,7]
[374138269,1753227057039,-151.0,0.00025141,7]
[374138270,1753227057048,-151.0,0.00025141,7]
[374138271,1753227057059,-283.896074,0.00025141,7]
[374138272,1753227057068,-151.0,0.00025141,7]
[374138273,1753227057077,-151.0,0.00025141,7]
[374138274,1753227057087,-151.0,0.00025141,7]
[374138275,1753227057096,-181.444636,0.00025141,7]
[374138276,1753227057106,-777020.6887965,0.00025141,20]
[374138277,1753227057226,-112449.27750534,0.00025141,20]
[374138278,1753227057846,-370.01652126,0.00025141,20]
[374138279,1753227057964,-460.0,0.00016793,2]
[374138280,1753227057974,-95.59550936,0.00016793,2]
[374138281,1753227058359,-155.3752953,0.00016793,2]
[374138282,1753227058369,-460.0,0.00017067,2]
[374138283,1753227058378,-460.0,0.00017341,2]
[374138284,1753227058386,-460.0,0.00017615,2]
[374138285,1753227058395,-460.0,0.00017889,2]
[374138286,1753227058404,-460.0,0.00018163,2]
[374138287,1753227058413,-460.0,0.00018437,2]
[374138288,1753227058422,-151.0,0.00018452,2]
[374138289,1753227058431,-151.0,0.00018452,2]
[374138290,1753227058440,-460.0,0.00018711,2]
[374138291,1753227058449,-151.0,0.00019327,2]
[374138292,1753227058458,-151.95371,0.00019373,2]
[374138293,1753227058471,-4495519.57513263,0.00025141,20]
[374138294,1753227058562,-467.48955791,0.00016795,2]
[374138295,1753227058571,-304.01,0.00016797,2]
[374138296,1753227058580,-178.05580908,0.00017345,2]
[374138297,1753227058589,-460.0,0.00018985,2]
[374138298,1753227058598,-239.041056,0.00019178,2]
[374138299,1753227058607,-545.08443727,0.00019259,2]
[374138300,1753227058616,-197.74547781,0.0002,2]
[374138301,1753227058626,-239.041056,0.00022603,2]
[374138302,1753227058635,-429.6101251,0.00024377,2]
[374138303,1753227058644,-8163.82248083,0.00025141,20]
[374138304,1753227058656,-3455.61,0.00025141,20]
[374138305,1753227105699,194.32103993,0.00016695,2]
[374138306,1753227124104,-274.97553666,0.00016792,2]
[374138307,1753227130449,-25.02446334,0.00016792,2]
[374138308,1753227130475,-165.71210128,0.00016793,2]
[374138309,1753227132641,-200.66287179,0.00016793,2]
[374138310,1753227135465,-93.62502693,0.00016793,2]
[374138311,1753227135488,-253.45409962,0.00016793,2]
[374138312,1753227137727,-206.54590038,0.00016793,2]
[374138313,1753227137752,-75.4732173,0.00016793,2]
[374138314,1753227140878,-326.77495798,0.00016793,2]
[374138315,1753227143075,-57.75182472,0.00016793,2]